bitfinex-derivatives/quotes_SOLF0:USTF0_20260217
["timestamp","ask_amount","ask_price","bid_price","bid_amount"]
[1771351216041,3.65154565,83.645,83.59,6.12948079]
[1771351216235,3.65154565,83.66,83.591,3.88686908]
[1771351217043,10.7658,83.644,83.593,3.88686908]
[1771351217238,3.65154565,83.66,83.593,3.88686908]
[1771351217942,10.7678,83.629,83.593,3.88686908]
[1771351218538,3.65154565,83.631,83.573,3.88686908]
[1771351219140,10.7695,83.615,83.573,3.88686908]
[1771351219336,3.65154565,83.646,83.58,6.12948079]
[1771351219543,3.65154565,83.646,83.581,3.88686908]
[1771351221550,10.7674,83.631,83.581,3.88686908]
[1771351222145,10.7674,83.631,83.58,16.90348079]
[1771351222146,10.7674,83.631,83.583,3.88686908]
[1771351222852,9.78102644,83.66,83.585,3.88686908]
[1771351223050,3.65154565,83.659,83.585,3.88686908]
[1771351223648,10.7668,83.636,83.585,3.88686908]
[1771351224155,3.65154565,83.645,83.585,3.88686908]
[1771351224156,10.7677,83.629,83.585,3.88686908]
[1771351224354,3.65154565,83.639,83.585,3.88686908]
[1771351226150,3.65154565,83.67,83.601,3.88686908]
[1771351226448,3.65154565,83.692,83.602,3.88686908]
[1771351226654,3.65154565,83.69,83.602,3.88686908]
[1771351226954,3.65154565,83.666,83.602,3.88686908]
[1771351227750,3.65154565,83.666,83.604,3.88686908]
[1771351228250,10.7657,83.645,83.604,3.88686908]
[1771351229445,10.7665,83.639,83.604,3.88686908]
[1771351229652,3.65154565,83.666,83.604,3.88686908]
[1771351229956,3.65154565,83.666,83.591,3.88686908]
[1771351230155,75.32,83.676,83.591,3.88686908]
[1771351230156,3.65154565,83.649,83.591,3.88686908]
[1771351232458,3.65154565,83.635,83.576,3.88686908]
[1771351233856,10.7685,83.623,83.576,3.88686908]
[1771351234660,10.7693,83.617,83.576,3.88686908]
[1771351234863,3.65154565,83.621,83.56,6.12900811]
[1771351235061,3.65154565,83.621,83.559,3.88686908]
[1771351235260,6.12900811,83.63,83.54,6.12900811]
[1771351235261,10.7719,83.596,83.54,6.12900811]
[1771351235459,3.65154565,83.595,83.541,3.88686908]
[1771351235954,10.773,83.588,83.541,3.88686908]
[1771351236157,3.65154565,83.595,83.541,3.88686908]
[1771351236553,10.7722,83.594,83.543,3.88686908]
[1771351238357,3.65154565,83.589,83.528,3.88686908]
[1771351238562,3.65154565,83.579,83.513,3.88686908]
[1771351238958,10.7763,83.563,83.513,3.88686908]
[1771351239663,3.65154565,83.579,83.524,3.88686908]
[1771351239859,6.12900811,83.6,83.524,3.88686908]
[1771351239860,3.65154565,83.599,83.524,3.88686908]
[1771351240364,10.772,83.596,83.541,3.88686908]
[1771351240559,3.65154565,83.599,83.541,3.88686908]
[1771351240760,3.65154565,83.599,83.521,3.88686908]
[1771351241064,10.7739,83.582,83.523,3.88686908]
[1771351241863,10.7739,83.582,83.526,3.88686908]
[1771351242762,10.7739,83.582,83.527,10.7808]
[1771351242964,10.7739,83.582,83.528,3.88686908]
[1771351243361,3.65154565,83.586,83.528,3.88686908]
[1771351243564,3.65154565,83.586,83.531,3.88686908]
[1771351244161,3.65154565,83.586,83.544,3.88686908]
[1771351244364,9.78055376,83.6,83.544,3.88686908]
[1771351244964,3.79739438,83.599,83.544,3.88686908]
[1771351245767,3.79739438,83.599,83.546,3.86282397]
[1771351246067,3.79739438,83.619,83.546,3.86282397]
[1771351247167,3.79739438,83.619,83.563,3.86282397]
[1771351247368,6.12900811,83.64,83.563,3.86282397]
[1771351247369,3.79739438,83.633,83.563,3.86282397]
[1771351247964,3.79739438,83.648,83.581,3.86282397]
[1771351248667,3.79739438,83.648,83.603,3.86282397]
[1771351249465,3.79739438,83.648,83.604,10.7708]
[1771351249966,3.79739438,83.648,83.603,3.86282397]
[1771351250568,3.79739438,83.648,83.603,14.63382397]
[1771351250770,3.79739438,83.648,83.603,3.86282397]
[1771351252171,3.79739438,83.648,83.588,3.86282397]
[1771351253063,14.72413835,83.64,83.588,3.86282397]
[1771351253263,3.95773835,83.639,83.588,3.86282397]
[1771351254764,14.72433835,83.638,83.588,3.86282397]
[1771351255071,3.95773835,83.637,83.588,3.86282397]
[1771351255566,3.95773835,83.637,83.573,3.84419594]
[1771351255770,3.95773835,83.629,83.559,3.84419594]
[1771351256763,3.95773835,83.606,83.559,3.84419594]
[1771351257072,6.12900811,83.63,83.54,6.12900811]
[1771351257073,3.95773835,83.621,83.561,3.84419594]
[1771351257264,3.95773835,83.607,83.561,3.84419594]
[1771351257571,3.95773835,83.607,83.54,81.46900811]
[1771351257572,3.95773835,83.607,83.541,3.84419594]
[1771351258166,10.7729,83.589,83.541,3.84419594]
[1771351259072,10.7737,83.583,83.541,3.84419594]
[1771351259470,10.7757,83.567,83.522,3.84419594]
[1771351259770,3.95773835,83.579,83.522,3.84419594]
[1771351261067,3.95773835,83.599,83.531,3.84419594]
[1771351261467,10.776,83.565,83.531,3.84419594]
[1771351262277,10.7751,83.572,83.531,3.84419594]
[1771351262770,3.95773835,83.586,83.531,3.84419594]
[1771351262771,10.7744,83.577,83.531,3.84419594]
[1771351262978,3.95773835,83.586,83.531,3.84419594]
[1771351263176,10.7735,83.584,83.531,3.84419594]
[1771351263376,14.73123835,83.584,83.531,3.84419594]
[1771351263775,3.95773835,83.583,83.531,3.84419594]
[1771351264979,3.95773835,83.578,83.531,3.84419594]
[1771351265175,3.95773835,83.578,83.517,3.84419594]
[1771351266275,3.95773835,83.576,83.52,3.84419594]
[1771351267475,10.7748,83.575,83.521,3.84419594]
[1771351268272,10.7748,83.575,83.523,3.84419594]
[1771351268472,3.95773835,83.592,83.523,3.84419594]
[1771351268778,3.95773835,83.592,83.5,6.12900811]
[1771351268779,3.95773835,83.619,83.541,3.84419594]
[1771351268976,3.95773835,83.619,83.546,3.84419594]
[1771351269274,3.95773835,83.592,83.54,6.12900811]
[1771351269480,3.95773835,83.592,83.535,10.7798]
[1771351269679,3.95773835,83.592,83.536,3.84419594]
[1771351270981,10.7727,83.591,83.541,10.779]
[1771351271176,3.95773835,83.59,83.536,3.84419594]
[1771351271376,3.95773835,83.59,83.52,81.48900811]
[1771351271582,3.95773835,83.59,83.518,3.84419594]
[1771351271777,3.95773835,83.558,83.507,10.7833]
[1771351271974,3.95773835,83.558,83.508,3.84419594]
[1771351272177,3.95773835,83.558,83.511,3.84419594]
[1771351272776,3.95773835,83.558,83.485,2.08302158]
[1771351272777,3.95773835,83.546,83.47,28.35932564]
[1771351273083,3.95773835,83.559,83.491,3.84419594]
[1771351274189,3.95773835,83.556,83.491,3.84419594]
[1771351274787,3.82879339,83.551,83.49,6.12900811]
[1771351274988,3.82879339,83.551,83.491,3.7757943]
[1771351275191,3.82879339,83.551,83.508,10.7833]
[1771351275389,3.82879339,83.568,83.509,3.7757943]
[1771351275779,10.7759,83.566,83.513,10.7826]
[1771351275990,3.82879339,83.565,83.513,10.7826]
[1771351277086,3.82879339,83.565,83.509,3.7757943]
[1771351277888,10.7761,83.564,83.511,10.7828]
[1771351278492,3.82879339,83.565,83.516,10.7822]
[1771351278688,3.82879339,83.565,83.512,3.7757943]
[1771351278887,9.9578015,83.58,83.512,3.7757943]
[1771351279087,9.9578015,83.58,83.489,21.5713]
[1771351279088,10.7727,83.59,83.538,3.7757943]
[1771351279393,3.82879339,83.595,83.538,3.7757943]
[1771351279994,3.82879339,83.611,83.553,3.7757943]
[1771351280392,3.82879339,83.639,83.553,3.7757943]
[1771351280590,10.7692,83.618,83.568,14.5512943]
[1771351280794,3.82879339,83.639,83.571,3.7757943]
[1771351281495,10.7654,83.647,83.595,3.7757943]
[1771351282097,3.82879339,83.656,83.595,3.7757943]
[1771351282399,3.82879339,83.656,83.578,3.7757943]
[1771351282698,3.82879339,83.621,83.569,10.7753]
[1771351282896,3.82879339,83.649,83.569,3.7757943]
[1771351283298,3.82879339,83.649,83.591,10.7726]
[1771351283797,3.82879339,83.649,83.594,3.7757943]
[1771351284298,3.82879339,83.649,83.58,6.12900811]
[1771351284496,3.82879339,83.638,83.582,10.7737]
[1771351285993,3.82879339,83.634,83.58,6.12900811]
[1771351286197,3.82879339,83.634,83.562,3.7757943]
[1771351286594,3.82879339,83.63,83.563,10.7761]
[1771351287090,3.82879339,83.627,83.57,10.7753]
[1771351287998,3.82879339,83.625,83.564,3.7757943]
[1771351288201,3.82879339,83.619,83.547,3.7757943]
[1771351288795,3.82879339,83.61,83.552,3.7757943]
[1771351289404,3.82879339,83.61,83.556,3.7757943]
[1771351290502,14.59889339,83.61,83.556,3.7757943]
[1771351290800,3.82879339,83.61,83.556,3.7757943]
[1771351291801,3.82879339,83.61,83.558,3.7757943]
[1771351292098,3.82879339,83.623,83.558,3.7757943]
[1771351292303,3.82879339,83.611,83.558,3.7757943]
[1771351293205,3.82879339,83.611,83.55,6.13422845]
[1771351293506,3.82879339,83.607,83.552,10.7775]
[1771351294308,3.82879339,83.607,83.557,10.7768]
[1771351294701,3.82879339,83.617,83.563,10.7762]
[1771351295003,3.82879339,83.617,83.558,3.7757943]
[1771351295710,3.82879339,83.617,83.566,14.5514943]
[1771351297007,10.7703,83.609,83.566,3.7757943]
[1771351297310,3.82879339,83.632,83.566,3.7757943]
[1771351297605,3.82879339,83.63,83.577,3.7757943]
[1771351298504,10.7669,83.636,83.586,3.7757943]
[1771351298704,3.82879339,83.646,83.586,3.7757943]
[1771351298902,3.82879339,83.646,83.596,3.7757943]
[1771351299201,3.82879339,83.646,83.581,3.7757943]
[1771351299405,3.82879339,83.646,83.57,6.13422845]
[1771351299603,3.82879339,83.617,83.566,3.7757943]
[1771351300713,10.7703,83.609,83.566,3.7757943]
[1771351301307,14.59909339,83.609,83.556,10.777]
[1771351301807,14.59909339,83.609,83.559,14.5524943]
[1771351302011,14.59909339,83.609,83.56,3.7757943]
[1771351302213,10.7712,83.602,83.56,3.7757943]
[1771351302512,3.82879339,83.609,83.56,3.7757943]
[1771351302910,10.7692,83.618,83.56,3.7757943]
[1771351303805,10.7692,83.618,83.55,6.13422845]
[1771351303806,10.7701,83.611,83.563,3.7757943]
[1771351304008,3.82879339,83.623,83.563,3.7757943]
[1771351304610,10.77,83.612,83.563,3.7757943]
[1771351304807,3.82879339,83.623,83.563,3.7757943]
[1771351305613,3.91163014,83.62,83.565,3.65281205]
[1771351306611,3.91163014,83.62,83.568,14.42831205]
[1771351306915,3.91163014,83.62,83.569,3.65281205]
[1771351307814,3.91163014,83.62,83.57,14.42801205]
[1771351308211,6.13422845,83.64,83.551,3.65281205]
[1771351308212,3.91163014,83.613,83.551,3.65281205]
[1771351308911,3.91163014,83.611,83.561,10.7763]
[1771351309318,3.91163014,83.608,83.551,3.65281205]
[1771351309511,3.91163014,83.608,83.537,3.65281205]
[1771351309716,8.5210187,83.638,83.537,3.65281205]
[1771351309717,3.91163014,83.599,83.537,3.65281205]
[1771351310307,3.91163014,83.59,83.538,3.65281205]
[1771351310514,10.04585859,83.6,83.538,3.65281205]
[1771351310808,3.91163014,83.59,83.539,3.65281205]
[1771351311317,10.7712,83.602,83.55,3.65281205]
[1771351311513,3.91163014,83.605,83.55,3.65281205]
[1771351311920,10.7712,83.602,83.556,10.777]
[1771351313420,10.7716,83.599,83.556,10.777]
[1771351313619,3.73143361,83.598,83.556,10.777]
[1771351316124,2.06182244,83.6,83.562,14.65420337]
[1771351316423,2.06182244,83.6,83.562,3.87800337]
[1771351316722,2.06182244,83.6,83.565,10.7759]
[1771351316921,3.73143361,83.608,83.562,3.87800337]
[1771351318014,2.06182244,83.62,83.571,3.87800337]
[1771351318822,10.7691,83.619,83.574,10.7747]
[1771351319525,10.7698,83.613,83.571,3.87800337]
[1771351319921,12.83072244,83.62,83.572,10.775]
[1771351320226,8.5619702,83.645,83.58,2.06182244]
[1771351320227,3.73143361,83.619,83.58,2.06182244]
[1771351320420,2.06182244,83.63,83.58,2.06182244]
[1771351320720,2.06182244,83.63,83.58,5.93982581]
[1771351321222,3.73143361,83.633,83.59,2.06182244]
[1771351321623,10.7677,83.629,83.59,5.93982581]
[1771351322028,3.73143361,83.633,83.59,3.87800337]
[1771351322225,3.73143361,83.633,83.58,6.12995513]
[1771351322226,10.7686,83.622,83.58,6.12995513]
[1771351323220,3.73143361,83.633,83.58,6.12995513]
[1771351323424,3.73143361,83.633,83.581,3.87800337]
[1771351324421,10.7673,83.632,83.581,14.65180337]
[1771351324621,3.73143361,83.631,83.581,14.65180337]
[1771351324925,3.73143361,83.631,83.582,3.87800337]
[1771351325321,3.73143361,83.646,83.588,3.87800337]
[1771351326223,3.73143361,83.646,83.59,3.87800337]
[1771351327127,3.73143361,83.644,83.59,3.87800337]
[1771351327925,3.73143361,83.644,83.596,10.7719]
[1771351328124,3.73143361,83.644,83.597,3.87800337]
[1771351328622,3.73143361,83.641,83.597,3.87800337]
[1771351328821,3.73143361,83.641,83.588,10.7729]
[1771351329122,3.73143361,83.641,83.583,3.87800337]
[1771351329318,6.12995513,83.66,83.583,3.87800337]
[1771351329319,3.73143361,83.631,83.583,3.87800337]
[1771351329523,3.73143361,83.631,83.568,22.22877543]
[1771351329524,3.73143361,83.631,83.569,3.87800337]
[1771351330031,10.7699,83.612,83.569,3.87800337]
[1771351330324,3.73143361,83.611,83.563,3.87800337]
[1771351330922,3.73143361,83.626,83.576,3.87800337]
[1771351331323,3.73143361,83.626,83.58,3.87800337]
[1771351332422,75.34,83.655,83.58,3.87800337]
[1771351332423,3.73143361,83.657,83.583,3.87800337]
[1771351332828,3.73143361,83.652,83.596,3.87800337]
[1771351333326,3.73143361,83.652,83.603,3.87800337]
[1771351333925,10.7636,83.661,83.606,3.87800337]
[1771351334525,10.7636,83.661,83.6,6.12995513]
[1771351334526,10.7636,83.661,83.608,4.01250713]
[1771351335225,10.7645,83.654,83.608,4.01250713]
[1771351335431,3.73143361,83.667,83.6,6.12995513]
[1771351335730,3.73143361,83.667,83.592,4.01250713]
[1771351336328,3.94357451,83.656,83.596,4.01250713]
[1771351336529,6.12995513,83.68,83.58,4.01250713]
[1771351336530,3.94357451,83.639,83.58,4.01250713]
[1771351337130,10.7682,83.625,83.58,4.01250713]
[1771351337634,14.71177451,83.625,83.58,4.01250713]
[1771351338129,3.94357451,83.625,83.58,4.01250713]
[1771351338336,3.94357451,83.625,83.564,4.01250713]
[1771351339834,3.94357451,83.625,83.567,4.01250713]
[1771351340734,3.94357451,83.625,83.571,4.01250713]
[1771351340931,3.94357451,83.639,83.571,4.01250713]
[1771351342234,3.94357451,83.629,83.557,4.01250713]
[1771351342536,3.94357451,83.618,83.557,4.01250713]
[1771351343430,3.94357451,83.618,83.571,10.775]
[1771351344132,3.94357451,83.617,83.564,10.776]
[1771351344737,3.94357451,83.614,83.564,10.776]
[1771351345237,3.94357451,83.614,83.571,10.7751]
[1771351345638,3.94357451,83.614,83.555,4.01250713]
[1771351346038,3.94357451,83.614,83.569,10.7753]
[1771351347534,3.94357451,83.606,83.555,4.01250713]
[1771351347743,3.94357451,83.629,83.555,4.01250713]
[1771351348038,2.06093007,83.62,83.58,2.06093007]
[1771351348234,14.71127451,83.629,83.583,10.7735]
[1771351348434,3.94357451,83.629,83.581,4.01250713]
[1771351348932,3.94357451,83.644,83.6,2.06093007]
[1771351349133,2.06093007,83.64,83.6,2.06093007]
[1771351349438,3.94357451,83.639,83.6,2.06093007]
[1771351349635,3.94357451,83.635,83.59,2.06093007]
[1771351349836,3.94357451,83.629,83.587,10.773]
[1771351350138,3.94357451,83.629,83.575,4.01250713]
[1771351350441,3.94357451,83.618,83.559,4.01250713]
[1771351350943,3.94357451,83.618,83.576,10.7745]
[1771351354644,3.94357451,83.631,83.58,4.01250713]
[1771351354845,3.94357451,83.645,83.581,4.01250713]
[1771351355553,3.94357451,83.645,83.606,10.7706]
[1771351355944,3.94357451,83.659,83.595,4.01250713]
[1771351356542,3.94357451,83.682,83.621,4.01250713]
[1771351356844,3.94357451,83.682,83.576,21.549]
[1771351356845,3.94357451,83.679,83.606,4.01250713]
[1771351357645,3.94357451,83.663,83.612,10.7698]
[1771351357946,3.94357451,83.663,83.606,4.01250713]
[1771351358342,3.94357451,83.679,83.621,4.01250713]
[1771351359747,3.94357451,83.679,83.627,10.7678]
[1771351360244,3.94357451,83.669,83.621,4.01250713]
[1771351360444,3.94357451,83.669,83.611,14.78250713]
[1771351360647,3.94357451,83.669,83.612,4.01250713]
[1771351361247,3.94357451,83.664,83.612,4.01250713]
[1771351362044,3.94357451,83.661,83.609,10.7702]
[1771351362743,35.93,83.677,83.6,16.90401079]
[1771351362744,3.94357451,83.655,83.6,16.90401079]
[1771351363944,3.94357451,83.655,83.6,6.13271079]
[1771351364253,3.94357451,83.642,83.583,4.01250713]
[1771351365150,10.7676,83.63,83.584,3.68760857]
[1771351365746,3.62208623,83.641,83.588,3.68760857]
[1771351366352,10.7664,83.639,83.588,3.68760857]
[1771351366553,3.62208623,83.641,83.588,3.68760857]
[1771351367550,14.38828623,83.641,83.59,3.68760857]
[1771351368448,10.7671,83.634,83.59,3.68760857]
[1771351368646,3.62208623,83.641,83.59,3.68760857]
[1771351369250,3.62208623,83.637,83.59,3.68760857]
[1771351371454,3.62208623,83.634,83.576,3.68760857]
[1771351371650,3.62208623,83.634,83.56,9.82031936]
[1771351371851,5.68318291,83.61,83.57,2.06109668]
[1771351372355,3.62208623,83.61,83.57,2.06109668]
[1771351373258,2.06109668,83.62,83.58,2.06109668]
[1771351373757,3.71591775,83.618,83.58,2.06109668]
[1771351374054,3.71591775,83.618,83.564,3.65659293]
[1771351374652,10.7697,83.614,83.565,10.7759]
[1771351374859,3.71591775,83.613,83.565,10.7759]
[1771351375054,3.71591775,83.613,83.55,3.65659293]
[1771351376655,10.7709,83.605,83.552,3.65659293]
[1771351377262,3.71591775,83.601,83.554,10.7773]
[1771351377654,3.71591775,83.601,83.552,3.65659293]
[1771351378762,3.71591775,83.601,83.561,10.7765]
[1771351380558,3.71591775,83.619,83.569,3.65659293]
[1771351381055,3.71591775,83.619,83.56,6.13343049]
[1771351381056,10.7681,83.627,83.584,3.65659293]
[1771351383064,3.71591775,83.626,83.584,3.65659293]
[1771351383359,3.71591775,83.624,83.576,10.7745]
[1771351384360,3.71591775,83.624,83.571,3.65659293]
[1771351384566,3.71591775,83.614,83.543,3.65659293]
[1771351385265,3.71591775,83.598,83.532,22.28603426]
[1771351385470,3.71591775,83.598,83.532,3.65659293]
[1771351385769,3.71591775,83.591,83.543,10.7787]
[1771351385966,3.71591775,83.607,83.544,3.65659293]
[1771351387159,3.71591775,83.596,83.549,10.778]
[1771351387366,3.71591775,83.596,83.532,3.65659293]
[1771351387665,10.7731,83.587,83.535,10.7798]
[1771351387866,3.71591775,83.586,83.532,3.65659293]
[1771351388365,3.71591775,83.575,83.518,3.65659293]
[1771351389072,3.71591775,83.571,83.518,3.65659293]
[1771351389564,6.13343049,83.58,83.518,3.65659293]
[1771351389764,3.71591775,83.571,83.521,10.7815]
[1771351390069,3.71591775,83.571,83.498,3.65659293]
[1771351390266,3.71591775,83.556,83.502,10.784]
[1771351391172,3.71591775,83.556,83.51,3.65659293]
[1771351391568,3.71591775,83.579,83.51,3.65659293]
[1771351391765,3.71591775,83.579,83.53,3.65659293]
[1771351392065,3.71591775,83.599,83.531,3.65659293]
[1771351392570,3.71591775,83.599,83.544,10.7786]
[1771351392765,3.71591775,83.599,83.531,3.65659293]
[1771351393473,10.7731,83.587,83.535,10.7797]
[1771351393769,3.71591775,83.599,83.531,3.65659293]
[1771351394274,10.7729,83.589,83.537,3.65659293]
[1771351395773,75.36,83.617,83.537,3.65659293]
[1771351395774,3.97756164,83.598,83.542,10.7788]
[1771351396766,3.97756164,83.595,83.542,10.7788]
[1771351397373,3.97756164,83.591,83.537,3.65659293]
[1771351397776,3.97756164,83.591,83.545,10.7784]
[1771351397981,3.97756164,83.622,83.546,3.7738705]
[1771351398978,3.97756164,83.604,83.546,3.7738705]
[1771351399876,3.97756164,83.597,83.553,10.7775]
[1771351400271,3.97756164,83.597,83.546,3.7738705]
[1771351400877,3.97756164,83.597,83.552,14.5513705]
[1771351401073,3.97756164,83.597,83.553,3.7738705]
[1771351402574,10.7706,83.607,83.553,3.7738705]
[1771351402777,3.97756164,83.614,83.553,3.7738705]
[1771351403181,10.7699,83.612,83.553,3.7738705]
[1771351403375,3.97756164,83.611,83.553,3.7738705]
[1771351404389,3.97756164,83.601,83.553,3.7738705]
[1771351405277,14.75046164,83.589,83.539,3.7738705]
[1771351405486,3.97756164,83.588,83.539,3.7738705]
[1771351406387,3.97756164,83.584,83.539,3.7738705]
[1771351407587,3.97756164,83.584,83.532,10.7801]
[1771351407588,3.97756164,83.583,83.532,10.7801]
[1771351408483,3.97756164,83.583,83.532,14.5539705]
[1771351409086,3.97756164,83.583,83.539,10.7792]
[1771351409389,3.97756164,83.583,83.539,3.7738705]
[1771351409891,10.7724,83.593,83.539,3.7738705]
[1771351410290,10.7732,83.587,83.539,3.7738705]
[1771351410792,10.7722,83.594,83.541,10.7789]
[1771351410984,10.7722,83.594,83.542,3.7738705]
[1771351411285,3.97756164,83.593,83.542,3.7738705]
[1771351411788,3.97756164,83.593,83.534,10.7799]
[1771351411990,3.97756164,83.593,83.553,10.7774]
[1771351412190,3.97756164,83.6,83.554,3.7738705]
[1771351412590,3.97756164,83.6,83.561,10.7764]
[1771351412792,3.97756164,83.6,83.554,3.7738705]
[1771351413297,3.97756164,83.6,83.56,10.7765]
[1771351414291,3.97756164,83.6,83.566,10.7758]
[1771351414594,3.97756164,83.6,83.554,3.7738705]
[1771351414794,3.97756164,83.6,83.565,10.7759]
[1771351414988,3.97756164,83.6,83.554,3.7738705]
[1771351415495,3.97756164,83.6,83.564,10.776]
[1771351416989,2.06152218,83.61,83.571,3.7738705]
[1771351417195,2.06152218,83.62,83.571,3.7738705]
[1771351417392,3.97756164,83.629,83.59,2.06152218]
[1771351417897,10.7665,83.639,83.6,2.06152218]
[1771351418204,3.97756164,83.659,83.61,2.06152218]
[1771351418499,3.97756164,83.655,83.611,10.77]
[1771351419399,10.7646,83.653,83.61,2.06152218]
[1771351419903,10.7646,83.653,83.6,6.12759043]
[1771351420295,14.74216164,83.653,83.6,9.90146093]
[1771351420604,10.7637,83.66,83.603,3.7738705]
[1771351421296,3.97756164,83.659,83.603,3.7738705]
[1771351421703,10.764,83.658,83.605,3.7738705]
[1771351422206,10.763,83.666,83.607,3.7738705]
[1771351422403,3.97756164,83.699,83.621,3.7738705]
[1771351423399,3.97756164,83.699,83.631,3.7738705]
[1771351423605,3.97756164,83.699,83.641,3.7738705]
[1771351423901,10.7599,83.69,83.642,3.7738705]
[1771351424300,10.7599,83.69,83.628,75.36]
[1771351424301,3.97756164,83.689,83.626,3.7738705]
[1771351424504,10.7614,83.678,83.626,3.7738705]
[1771351425905,10.7614,83.678,83.628,3.86218682]
[1771351426503,10.7625,83.67,83.628,3.86218682]
[1771351427004,14.66448694,83.678,83.628,3.86218682]
[1771351427205,6.12759043,83.7,83.628,3.86218682]
[1771351427206,3.90308694,83.694,83.628,3.86218682]
[1771351427506,3.90308694,83.694,83.575,167.6047]
[1771351427507,3.90308694,83.694,83.642,3.86218682]
[1771351427904,10.7581,83.704,83.642,3.86218682]
[1771351428104,10.759,83.697,83.642,3.86218682]
[1771351428308,3.90308694,83.696,83.642,3.86218682]
[1771351428906,3.90308694,83.686,83.627,14.62998682]
[1771351429107,3.90308694,83.686,83.627,3.86218682]
[1771351430201,3.90308694,83.686,83.634,3.86218682]
[1771351430706,3.90308694,83.686,83.638,3.86218682]
[1771351431206,3.90308694,83.686,83.641,10.7661]
[1771351431506,3.90308694,83.686,83.641,14.62828682]
[1771351432306,10.03067737,83.7,83.642,3.86218682]
[1771351432503,3.90308694,83.699,83.642,3.86218682]
[1771351433309,10.7585,83.701,83.642,3.86218682]
[1771351433513,10.7574,83.71,83.663,14.66189855]
[1771351434210,10.7574,83.71,83.663,3.89869855]
[1771351434407,14.72090578,83.703,83.663,3.89869855]
[1771351435011,14.72090578,83.703,83.655,10.7643]
[1771351435211,3.96270578,83.702,83.655,10.7643]
[1771351435609,3.96270578,83.698,83.648,10.7652]
[1771351436809,3.96270578,83.695,83.648,10.7652]
[1771351437318,3.96270578,83.693,83.648,10.7652]
[1771351437513,3.96270578,83.693,83.654,10.7644]
[1771351438422,10.7578,83.706,83.658,10.764]
[1771351438813,3.96270578,83.709,83.658,10.764]
[1771351439221,10.7586,83.7,83.658,10.764]
[1771351439811,10.7586,83.7,83.655,3.89869855]
[1771351440013,12.81528844,83.7,83.655,3.89869855]
[1771351442022,2.05668844,83.69,83.655,3.89869855]
[1771351442215,167.2427,83.757,83.63,2.05668844]
[1771351442216,6.01939422,83.67,83.63,2.05668844]
[1771351442418,3.96270578,83.67,83.63,2.05668844]
[1771351443018,2.05668844,83.68,83.631,3.89869855]
[1771351443220,6.01939422,83.69,83.65,2.05668844]
[1771351443520,3.96270578,83.705,83.66,2.05668844]
[1771351443924,2.05668844,83.7,83.651,3.89869855]
[1771351444321,2.05668844,83.72,83.671,3.89869855]
[1771351444627,2.05668844,83.72,83.68,2.05668844]
[1771351444822,2.05668844,83.72,83.671,3.89869855]
[1771351444823,6.01939422,83.72,83.671,3.89869855]
[1771351445123,2.05668844,83.71,83.671,3.89869855]
[1771351446117,3.96270578,83.709,83.66,2.05668844]
[1771351446317,2.05668844,83.71,83.671,3.89869855]
[1771351446522,14.71910578,83.717,83.671,3.89869855]
[1771351446726,3.96270578,83.709,83.661,10.7635]
[1771351447127,3.96270578,83.709,83.655,3.89869855]
[1771351447128,2.05668844,83.7,83.655,3.89869855]
[1771351447320,2.05668844,83.7,83.661,3.89869855]
[1771351447726,3.96270578,83.709,83.662,3.89869855]
[1771351449723,3.96270578,83.709,83.664,3.89869855]
[1771351449925,3.96270578,83.729,83.664,3.89869855]
[1771351450330,10.7555,83.724,83.679,10.7611]
[1771351451631,3.96270578,83.729,83.679,10.7611]
[1771351451832,3.96270578,83.729,83.686,3.89869855]
[1771351452333,3.96270578,83.729,83.689,10.7599]
[1771351453028,3.96270578,83.729,83.686,3.89869855]
[1771351453828,3.96270578,83.747,83.686,3.89869855]
[1771351454228,3.96270578,83.739,83.686,3.89869855]
[1771351454926,3.7951856,83.738,83.686,3.89869855]
[1771351455725,3.7951856,83.738,83.698,10.7587]
[1771351456433,3.7951856,83.738,83.686,3.89869855]
[1771351456830,3.7951856,83.731,83.687,10.7601]
[1771351457225,6.11993641,83.74,83.688,3.86586359]
[1771351457426,3.7951856,83.744,83.692,3.86586359]
[1771351457841,3.7951856,83.758,83.702,3.86586359]
[1771351458335,3.7951856,83.779,83.702,3.86586359]
[1771351458529,14.5443856,83.774,83.722,3.86586359]
[1771351458730,3.7951856,83.774,83.701,3.86586359]
[1771351458931,3.7951856,83.769,83.701,3.86586359]
[1771351459531,3.7951856,83.769,83.723,3.86586359]
[1771351460830,6.11993641,83.78,83.709,3.86586359]
[1771351460831,3.7951856,83.767,83.709,3.86586359]
[1771351461135,3.7951856,83.767,83.7,9.9858]
[1771351461529,3.7951856,83.767,83.701,3.86586359]
[1771351461935,3.7951856,83.756,83.701,3.86586359]
[1771351462335,3.7951856,83.756,83.653,11.96]
[1771351462336,3.7951856,83.736,83.689,10.7599]
[1771351462842,3.7951856,83.733,83.687,3.86586359]
[1771351463939,3.7951856,83.728,83.675,3.86586359]
[1771351465439,3.7951856,83.728,83.66,6.11993641]